bitfinex-derivatives/quotes_ETHF0:USTF0_20251117
["timestamp","ask_amount","ask_price","bid_price","bid_amount"]
[1763396380774,3.2078,3069.3,3068.5,3.21268345]
[1763396381068,0.6245,3069.6,3068.5,3.21268345]
[1763396381266,0.6245,3069.6,3069.0,0.52832]
[1763396381465,3.2078,3069.7,3069.0,0.52832]
[1763396381671,3.2078,3069.7,3069.1,0.52831]
[1763396382063,3.2078,3069.7,3069.0,0.52832]
[1763396382264,3.2078,3069.7,3069.1,0.52831]
[1763396382471,3.2078,3069.7,3069.3,0.52828]
[1763396382770,0.1436452,3072.1,3070.8,3.2078]
[1763396382967,3.2078,3073.4,3072.0,3.2078]
[1763396383164,2.39571772,3072.7,3072.5,3.2078]
[1763396383465,0.6245,3071.7,3071.6,0.87294475]
[1763396383669,3.83567217,3071.7,3071.3,0.00488345]
[1763396383873,0.52797,3071.1,3071.0,2.76061616]
[1763396384775,0.52797,3071.1,3071.0,2.763979]
[1763396386472,0.52796,3071.2,3071.0,2.763979]
[1763396386970,0.52789,3071.6,3071.0,2.763979]
[1763396387176,0.52789,3071.6,3071.5,3.2078]
[1763396387375,0.52791,3071.5,3071.1,3.2078]
[1763396387876,0.62787217,3071.7,3071.1,3.2078]
[1763396388072,0.62787217,3071.7,3071.6,3.2078]
[1763396388770,0.52795,3071.2,3071.1,3.2078]
[1763396389075,1.15252,3070.8,3070.7,0.00488345]
[1763396389476,0.6245,3070.8,3070.7,0.00488345]
[1763396389676,0.62787217,3071.7,3070.7,0.00488345]
[1763396389865,0.62787217,3071.7,3071.0,3.2078]
[1763396390082,0.62787217,3071.7,3071.0,3.21063479]
[1763396390265,0.52791,3071.5,3071.4,3.2078]
[1763396390473,0.52796,3071.2,3071.0,3.21063479]
[1763396391968,0.52797,3071.1,3071.0,3.21063479]
[1763396393482,0.52797,3071.1,3071.0,0.00283479]
[1763396394682,0.52795,3071.2,3071.0,3.21063479]
[1763396394881,0.52792,3071.4,3071.0,3.21063479]
[1763396395281,0.52797,3071.2,3071.0,3.21063479]
[1763396395477,0.52797,3071.1,3071.0,3.21063479]
[1763396395782,0.52797,3071.1,3071.0,4.06142655]
[1763396395982,0.52797,3071.1,3071.0,4.06139119]
[1763396396576,0.52797,3071.1,3071.0,3.21063479]
[1763396397480,0.52802,3070.8,3070.7,0.00488345]
[1763396398077,0.824,3071.2,3070.7,0.00488345]
[1763396398378,0.52802,3070.8,3070.7,0.00488345]
[1763396398578,3.2078,3071.0,3070.7,0.00723461]
[1763396398778,0.52802,3070.8,3070.7,0.00723461]
[1763396400584,0.52811,3070.3,3070.2,3.2078]
[1763396400784,0.52811,3070.3,3069.3,40.8]
[1763396400785,0.52819,3069.8,3069.7,3.2078]
[1763396400986,0.52819,3069.8,3069.7,4.05867902]
[1763396401185,0.824,3070.4,3069.7,4.05867902]
[1763396401382,3.2078,3070.6,3069.8,0.85094211]
[1763396401590,3.2078,3070.1,3069.7,3.2078]
[1763396401883,0.52813,3070.2,3069.8,0.00488345]
[1763396402085,0.52816,3070.1,3069.8,0.00488345]
[1763396402281,0.52817,3069.9,3069.8,0.00488345]
[1763396402487,0.52817,3069.9,3069.8,0.85626413]
[1763396402784,0.52817,3069.9,3069.8,0.00488345]
[1763396403779,3.2078,3070.1,3069.7,3.21162302]
[1763396404083,0.52835,3068.9,3068.8,3.2078]
[1763396404281,0.52835,3068.9,3067.8,2.86303001]
[1763396404282,0.824,3068.8,3067.8,1.73427612]
[1763396404481,3.2078,3068.5,3067.9,0.85245819]
[1763396404789,0.52848,3068.1,3068.0,0.85234929]
[1763396404989,0.53088873,3068.1,3068.0,0.00399164]
[1763396405690,0.00488345,3068.5,3068.0,10.11562636]
[1763396405883,3.2078,3069.1,3068.4,3.2078]
[1763396406084,0.824,3069.6,3068.9,3.2078]
[1763396406383,3.73611,3069.1,3069.0,0.85243472]
[1763396406583,0.52838,3068.8,3068.5,3.2078]
[1763396406791,0.52838,3068.8,3068.6,0.85223883]
[1763396406792,0.52839,3068.7,3068.6,0.85223883]
[1763396406975,0.00327315,3068.8,3068.6,0.85223883]
[1763396407286,0.00327315,3068.8,3068.7,0.85223883]
[1763396407482,0.53163315,3068.8,3068.7,0.85223883]
[1763396407986,0.00488345,3069.0,3068.7,0.85223883]
[1763396408287,0.00488345,3069.0,3068.9,3.2078]
[1763396408494,0.00488345,3069.0,3068.9,4.06003883]
[1763396408979,0.53736831,3069.0,3068.9,4.06003883]
[1763396409176,0.52841,3068.6,3068.5,3.2078]
[1763396409379,0.52838,3068.7,3068.5,4.05979033]
[1763396409584,0.52838,3068.7,3068.6,0.85199033]
[1763396410182,0.52838,3068.7,3068.5,3.2078]
[1763396410183,0.5284,3068.6,3068.5,3.2078]
[1763396410493,0.52848,3068.1,3068.0,3.21179164]
[1763396411986,4.0318,3068.8,3068.0,3.21179164]
[1763396412289,0.824,3068.8,3068.0,3.21179164]
[1763396412486,0.824,3068.8,3068.4,3.2078]
[1763396412686,0.52838,3068.7,3068.4,3.2078]
[1763396412877,0.824,3068.8,3068.0,3.21179164]
[1763396413084,0.52843,3068.5,3068.1,0.85105799]
[1763396413280,3.2078,3068.6,3068.0,3.21179164]
[1763396413488,0.52848,3068.1,3068.0,3.21179164]
[1763396413788,0.52848,3068.1,3067.9,0.00325562]
[1763396413789,1.3525,3068.0,3067.9,0.00325562]
[1763396413988,0.824,3068.0,3067.1,3.2078]
[1763396414189,0.824,3068.0,3066.1,2.31236817]
[1763396414190,4.0318,3067.2,3066.3,1.16199578]
[1763396414395,3.2078,3066.8,3066.1,3.2078]
[1763396414584,3.2078,3066.8,3065.7,3.2078]
[1763396414789,3.2078,3066.3,3065.8,0.85095143]
[1763396414998,0.82889165,3066.4,3065.9,0.85095143]
[1763396415293,0.52881,3066.2,3065.7,3.21554036]
[1763396415488,0.52881,3066.2,3065.8,0.84962956]
[1763396415696,0.00489165,3066.4,3065.9,0.84962956]
[1763396415894,0.52884,3066.1,3065.7,0.00774036]
[1763396416090,0.52885,3066.0,3065.8,0.84966526]
[1763396416295,0.529,3065.1,3065.0,1.16199578]
[1763396416504,3.2078,3066.0,3064.7,0.09064158]
[1763396416792,0.529,3065.2,3065.0,3.2078]
[1763396416990,0.52901,3065.1,3064.9,3.2078]
[1763396417187,0.824,3065.4,3064.9,0.00266919]
[1763396417385,0.824,3066.3,3065.3,3.2078]
[1763396417593,0.824,3066.3,3066.2,3.2078]
[1763396417789,0.52884,3066.1,3065.8,3.2078]
[1763396417984,0.824,3066.3,3065.8,3.2078]
[1763396418191,0.53367165,3066.4,3066.2,3.2078]
[1763396418390,0.00489165,3066.4,3066.2,3.2078]
[1763396418599,0.00489165,3066.4,3066.2,6.4686]
[1763396418787,3.2078,3068.2,3066.3,0.84645521]
[1763396418991,3.2078,3068.6,3067.5,3.2078]
[1763396419188,3.2078,3067.8,3067.1,3.2078]
[1763396419394,0.8696,3067.2,3066.6,3.2078]
[1763396419593,0.52874,3066.7,3066.2,3.2078]
[1763396419794,0.0040839,3066.7,3066.2,0.00381219]
[1763396419994,0.0040839,3066.7,3066.6,3.2078]
[1763396420207,0.52877,3066.5,3066.2,0.00381219]
[1763396420394,0.8696,3066.3,3066.2,0.00381219]
[1763396421195,0.8696,3066.3,3065.7,3.2078]
[1763396421196,0.52888,3065.8,3065.7,3.2078]
[1763396421603,0.52886,3066.0,3065.7,3.2078]
[1763396421900,0.8696,3066.3,3065.7,3.2078]
[1763396422196,0.8696,3066.3,3066.2,3.2078]
[1763396422501,0.0040839,3066.7,3066.2,3.2078]
[1763396422698,0.00489165,3066.8,3066.6,3.2078]
[1763396423001,0.824,3068.0,3066.6,3.2078]
[1763396423204,0.52859,3067.5,3067.4,3.2078]
[1763396423505,0.824,3068.0,3066.9,3.2078]
[1763396423506,0.52866,3067.1,3066.9,3.2078]
[1763396423698,0.8924,3067.2,3066.9,3.2078]
[1763396423896,0.824,3068.0,3066.9,3.2078]
[1763396424108,0.52856,3067.7,3067.5,3.2078]
[1763396424307,0.824,3068.0,3067.1,3.2078]
[1763396424604,0.824,3068.0,3067.5,3.2078]
[1763396424795,3.2078,3068.6,3067.9,3.2078]
[1763396424999,2.15,3069.4,3067.9,3.2078]
[1763396425000,0.52838,3068.8,3068.5,3.2078]
[1763396425199,0.00489165,3068.6,3068.5,3.2078]
[1763396425698,0.8924,3069.9,3068.5,4.04891129]
[1763396425907,0.8924,3070.8,3069.8,3.2078]
[1763396426095,0.89486789,3070.8,3070.5,3.2078]
[1763396426294,0.89486789,3070.8,3070.5,3.21186604]
[1763396426501,0.52817,3070.0,3069.8,3.2078]
[1763396426700,0.89486789,3070.8,3069.8,3.2078]
[1763396426701,0.52809,3070.4,3069.8,3.2078]
[1763396426999,0.52806,3070.6,3070.1,3.2078]
[1763396427197,0.52806,3070.6,3070.5,3.2078]
[1763396427398,0.89486789,3070.8,3070.5,3.2078]
[1763396427598,0.00246789,3070.8,3070.5,3.21011789]
[1763396427802,0.8924,3071.7,3070.6,0.84113457]
[1763396427994,0.8924,3071.7,3070.5,9.21011789]
[1763396427995,0.52788,3071.6,3071.4,3.2078]
[1763396428200,3.2078,3072.5,3071.4,3.2078]
[1763396428403,3.91413489,3075.9,3072.4,3.2078]
[1763396428404,0.52744,3074.2,3072.4,3.2078]
[1763396428707,0.00392261,3073.5,3073.3,3.2078]
[1763396428899,0.00392261,3073.5,3073.3,3.21150197]
[1763396429100,0.53149261,3073.5,3073.3,3.21150197]
[1763396429694,0.00392261,3073.5,3073.3,3.21150197]
[1763396430304,0.53149261,3073.5,3073.3,3.21150197]
[1763396430504,0.00392261,3073.5,3073.3,3.21150197]
[1763396431015,0.8924,3075.0,3073.4,4.09014556]
[1763396431304,3.2078,3074.9,3074.1,3.2078]
[1763396431507,0.52743,3074.3,3074.1,3.2078]
[1763396431704,0.52745,3074.2,3073.6,3.2078]
[1763396431914,0.52747,3074.1,3074.0,3.2078]
[1763396432202,0.00601402,3074.2,3074.0,3.2078]
[1763396432607,0.8924,3075.0,3074.0,3.2078]
[1763396432805,1.41971,3075.0,3074.8,3.2078]
[1763396432997,0.8924,3075.0,3074.8,3.2078]
[1763396433197,3.2078,3076.2,3074.9,9.252]
[1763396433404,3.2078,3076.2,3073.4,19.995]
[1763396433405,0.52708,3076.3,3075.6,3.2078]
[1763396433607,0.8924,3077.0,3075.6,3.21014338]
[1763396433807,0.52698,3076.9,3076.7,3.2078]
[1763396434010,3.2078,3076.8,3075.9,3.2078]
[1763396434203,0.8924,3077.0,3075.9,3.2078]
[1763396434405,0.8924,3077.0,3076.9,3.2078]
[1763396434703,0.89611541,3077.0,3076.3,3.2078]
[1763396434904,3.2078,3077.7,3076.5,3.2078]
[1763396435102,0.8924,3078.0,3077.3,3.2078]
[1763396435103,0.52687,3077.6,3077.3,3.2078]
[1763396435297,0.8924,3078.0,3077.4,3.2488]
[1763396435505,4.1002,3079.0,3077.9,3.2078]
[1763396435710,0.52685,3077.7,3077.5,3.2078]
[1763396435905,0.8924,3077.8,3077.5,3.2078]
[1763396436116,0.53081936,3077.7,3077.5,3.21073825]
[1763396436309,3.73861936,3077.7,3077.5,0.00293825]
[1763396436504,0.53081936,3077.7,3077.5,0.00293825]
[1763396436712,6.0,3077.6,3077.5,0.00293825]
[1763396437009,0.52692,3077.2,3077.1,0.00487512]
[1763396437716,0.52702,3076.6,3076.5,3.2078]
[1763396438216,0.8924,3076.7,3076.5,3.21067166]
[1763396438512,0.00397936,3077.7,3076.5,3.21067166]
[1763396438712,0.52685,3077.6,3077.4,3.2078]
[1763396439505,0.52697,3076.9,3076.8,0.00487512]
[1763396439711,0.52697,3076.9,3076.8,3.21267512]
[1763396440408,0.8924,3077.0,3076.8,3.21267512]
[1763396440615,0.52714,3076.0,3075.4,40.8]
[1763396440815,3.2078,3076.5,3075.8,3.2078]
[1763396441110,3.2078,3077.3,3076.2,3.2078]
[1763396441308,3.2078,3077.3,3075.3,8.262]
[1763396441309,0.00397936,3077.7,3077.1,3.2078]
[1763396441610,4.1002,3077.8,3077.1,3.21267512]
[1763396441611,3.2078,3077.8,3077.1,3.21267512]
[1763396441806,3.2078,3078.4,3077.7,3.2078]
[1763396442001,3.2078,3078.4,3077.1,0.00487512]
[1763396442002,3.2078,3078.8,3078.1,3.2078]
[1763396442206,3.2078,3079.8,3078.6,3.2078]
[1763396442404,3.2078,3080.4,3079.4,3.2078]
[1763396442612,0.89508185,3080.0,3079.4,3.21049201]
[1763396443005,0.89992893,3080.0,3079.4,3.21536713]
[1763396443203,0.89992893,3080.0,3079.8,3.2078]
[1763396443406,0.89992893,3080.0,3079.6,3.2078]
[1763396443610,0.00752893,3080.0,3079.6,3.2078]
[1763396443815,3.2078,3081.5,3079.7,3.2464]
[1763396444009,0.8924,3082.0,3080.6,3.2078]
[1763396444010,3.2078,3081.9,3080.6,3.2078]
[1763396444311,3.2078,3080.9,3080.1,3.2078]
[1763396444506,3.2078,3081.3,3080.5,3.2078]
[1763396444815,0.89591001,3081.0,3080.5,3.2078]
[1763396445108,3.2078,3080.8,3080.1,3.2078]
[1763396445309,0.89591001,3081.0,3080.5,3.2078]
[1763396445808,0.89591001,3081.0,3080.1,3.2078]
[1763396446014,3.2078,3080.5,3079.5,3.2078]
[1763396446214,3.2078,3080.7,3079.9,3.2078]
[1763396446712,0.8924,3080.0,3079.5,3.2078]
[1763396447114,0.8924,3080.0,3079.4,0.00756713]
[1763396447115,3.2078,3079.7,3079.4,0.00756713]
[1763396447412,0.8924,3078.9,3077.8,3.2078]
[1763396447612,3.2078,3078.6,3077.8,3.2078]
[1763396448415,0.00487512,3078.5,3077.9,0.00487512]
[1763396449117,3.2078,3078.0,3077.9,0.00487512]
[1763396449718,0.00487512,3078.5,3077.9,0.00487512]
[1763396449924,0.00487512,3078.5,3078.3,3.2078]
[1763396450223,0.00327481,3078.6,3077.9,3.21267512]
[1763396450522,0.00327481,3078.6,3078.3,3.2078]
[1763396450718,0.00327481,3078.6,3077.9,3.21267512]
[1763396450719,3.2078,3078.4,3077.9,3.21267512]
[1763396450912,3.2078,3078.5,3077.9,0.00487512]
[1763396451425,0.00327481,3078.6,3077.9,3.21267512]
[1763396451613,0.00327481,3078.6,3078.3,3.2078]
[1763396452115,0.8924,3078.9,3078.3,3.2078]
[1763396452421,0.8924,3080.0,3078.7,3.2078]
[1763396452719,0.8924,3080.0,3079.5,3.2078]
[1763396453120,0.89498677,3080.0,3079.5,3.2078]
[1763396453518,0.89498677,3080.0,3079.9,3.2078]
[1763396453824,0.89498677,3080.0,3079.7,3.2078]
[1763396454522,3.2078,3081.1,3079.7,3.2078]
[1763396454717,3.2078,3081.1,3080.4,3.2078]
[1763396454923,3.2078,3081.5,3080.4,3.2078]
[1763396455311,0.89661403,3081.0,3080.4,3.21162378]
[1763396455515,0.89661403,3081.0,3080.8,3.2078]
[1763396455815,14.09187272,3083.7,3080.8,3.2078]
[1763396455816,3.2078,3082.5,3080.8,3.2078]
[1763396456018,3.2078,3082.5,3080.5,3.48391952]
[1763396456019,3.2078,3083.0,3081.9,3.2078]
[1763396456210,4.0605,3083.3,3082.5,3.2078]
[1763396456522,4.0605,3083.3,3081.1,0.00487512]
[1763396456523,0.8527,3082.2,3081.7,3.2078]
[1763396456712,0.85528613,3082.2,3081.7,3.2078]
[1763396457022,0.85528613,3082.2,3082.1,3.2078]
[1763396457227,0.85528613,3082.2,3081.3,3.2078]
[1763396457523,0.85528613,3082.2,3080.4,0.83976462]
[1763396457524,0.8527,3081.1,3080.4,0.00382378]
[1763396457715,3.2078,3080.8,3079.1,3.2078]
[1763396457915,3.2078,3080.4,3079.5,3.2078]
[1763396458322,4.0605,3080.0,3079.1,3.2078]
[1763396458517,4.0605,3080.0,3079.2,0.00486713]
[1763396458518,0.00484848,3079.9,3079.2,0.00486713]
[1763396458719,0.00759534,3079.9,3079.7,3.2078]
[1763396458921,4.0605,3081.1,3079.7,6.4542]
[1763396459218,3.2078,3081.5,3080.3,3.2078]
[1763396459530,3.2078,3082.0,3080.8,3.2078]
[1763396459914,0.00267755,3082.0,3081.5,3.2078]
[1763396460121,0.00267755,3082.0,3081.5,3.21130305]
[1763396460421,0.00267755,3082.0,3081.1,0.00486713]
[1763396460422,3.2078,3081.7,3081.1,0.00486713]
[1763396460727,0.00267755,3082.0,3080.1,4.04071601]
[1763396460929,3.2078,3081.3,3080.5,0.83594084]
[1763396461113,3.2078,3080.9,3080.2,3.2078]
[1763396461319,3.2078,3081.5,3080.6,3.2078]
[1763396461519,3.2078,3080.7,3080.6,0.00243503]
[1763396461823,3.2078,3080.7,3080.3,0.00486713]
[1763396462025,3.2078,3080.7,3079.6,3.2078]
[1763396462327,3.2078,3080.6,3079.7,1.67155412]
[1763396462625,3.2078,3080.3,3079.8,0.83561328]
[1763396462819,3.2078,3079.9,3078.7,3.2078]
[1763396463016,0.00486713,3079.6,3079.1,3.2078]
[1763396463220,3.2078,3080.8,3079.5,3.2078]
[1763396463423,3.2078,3080.3,3079.6,1.99538124]
[1763396463719,3.2078,3081.8,3080.0,1.16199578]
[1763396463922,3.2078,3081.5,3080.4,4.36979578]
[1763396464123,0.00486713,3081.3,3080.8,3.2078]
[1763396464326,3.2078,3082.3,3081.0,1.16199578]
[1763396464624,3.2078,3082.7,3082.1,3.2078]
[1763396464820,3.2078,3083.1,3082.2,0.83338546]
[1763396465024,3.2078,3083.2,3082.5,3.2078]
[1763396465227,0.8527,3083.3,3083.1,3.2078]
[1763396465422,0.00315902,3083.2,3082.8,1.16199578]
[1763396465624,0.00315902,3083.2,3082.9,4.0400337]
[1763396465921,0.00315902,3083.2,3083.0,0.8322337]
[1763396466115,0.00315902,3083.2,3083.1,0.83228451]
[1763396466313,0.0346,3083.7,3083.1,0.83228451]
[1763396466514,3.2078,3084.9,3083.6,4.94207612]
[1763396466714,3.2078,3084.9,3084.0,3.2078]
[1763396466919,1.978,3087.3,3084.0,3.2078]
[1763396466920,3.2078,3084.5,3084.0,3.2078]
[1763396467120,3.2078,3084.9,3083.9,0.00486713]
[1763396467423,0.00267336,3084.9,3083.9,0.00486713]
[1763396467631,0.00267336,3084.9,3084.1,3.2078]
[1763396468122,0.00267336,3084.9,3084.6,3.2078]
[1763396468321,0.00267336,3084.9,3084.6,3.21108969]
[1763396469021,3.2078,3086.2,3084.7,5.21796186]
[1763396469227,3.2078,3086.2,3085.7,3.2078]
[1763396469423,3.2078,3087.0,3085.7,3.2078]
[1763396469626,3.2078,3086.6,3086.1,3.2078]
[1763396469817,3.2078,3087.0,3085.7,3.2078]
[1763396470023,4.0605,3086.4,3085.7,3.2078]
[1763396470233,3.2078,3085.9,3084.4,3.2078]
[1763396470425,3.2078,3084.7,3083.7,40.8]
[1763396470625,3.2078,3084.6,3083.7,40.8]
[1763396470827,3.2078,3085.1,3084.4,3.2078]
[1763396471021,4.0605,3085.2,3084.4,3.2078]
[1763396471226,0.8527,3086.4,3083.7,40.8]
[1763396471227,0.00486713,3085.1,3084.9,3.2078]
[1763396471427,0.00766765,3085.1,3084.5,0.00486713]
[1763396471625,3.2078,3084.8,3083.2,3.2078]
[1763396471831,3.2078,3083.9,3083.2,3.2078]
[1763396472127,3.2078,3083.5,3082.7,3.2078]
[1763396472520,0.8527,3084.0,3082.8,0.00486713]
[1763396472521,3.2078,3083.1,3082.8,0.00486713]
[1763396472730,0.8527,3082.8,3081.6,3.2078]
[1763396472922,3.2078,3082.3,3081.2,3.2078]
[1763396473129,3.2078,3082.0,3081.2,3.2078]
[1763396473428,3.2078,3081.5,3080.8,3.2078]
[1763396473625,3.2078,3080.9,3080.8,0.00853273]
[1763396473831,3.2078,3080.9,3079.5,2.31236817]
[1763396473832,3.2078,3080.9,3079.5,3.2078]
[1763396474031,0.8527,3080.4,3079.5,3.2078]
[1763396474429,3.2078,3080.2,3079.1,3.2078]
[1763396474637,3.2078,3080.1,3079.1,3.2078]
[1763396474839,3.2078,3079.7,3079.3,0.00486713]
[1763396475026,3.21266713,3079.9,3079.3,0.00486713]
[1763396475333,0.8527,3079.2,3079.1,0.00305657]
[1763396475536,0.85630221,3079.2,3079.1,0.00305657]
[1763396475925,0.00486713,3079.9,3079.1,9.21085657]
[1763396476132,3.21266713,3079.9,3079.2,0.00486713]
[1763396476330,3.2078,3079.4,3079.2,0.00486713]
[1763396476639,3.2078,3079.5,3079.1,0.00305657]
[1763396476845,3.2078,3079.5,3078.2,3.2078]
[1763396477139,0.00486713,3079.9,3077.3,41.94733858]
[1763396477140,3.2078,3079.7,3079.1,3.2078]
[1763396477546,3.2078,3079.3,3078.7,3.2078]
[1763396477733,3.21116966,3079.3,3078.7,3.21436483]
[1763396478137,0.835,3079.2,3078.7,3.21436483]
[1763396478529,0.835,3079.2,3078.7,3.2468466]
[1763396479344,0.00336966,3079.3,3079.1,3.2078]
[1763396480136,0.00486713,3079.9,3079.1,9.2078]
[1763396480333,0.00486713,3079.9,3079.2,3.2078]
[1763396480334,3.21266713,3079.9,3079.2,3.2078]
[1763396480645,3.2078,3079.4,3078.7,0.0390466]
[1763396481245,3.21020815,3079.4,3078.7,0.0390466]
[1763396481433,0.00240815,3079.4,3078.8,3.2078]
[1763396481633,0.00240815,3079.4,3079.3,3.2078]
[1763396481834,3.21020815,3079.4,3078.9,3.2078]
[1763396482230,3.21020815,3079.4,3078.7,0.0390466]
[1763396482435,3.2078,3078.9,3078.7,0.0390466]
[1763396482834,3.2078,3078.8,3078.7,0.0390466]
[1763396483436,0.7926,3079.2,3078.7,0.0390466]
[1763396483636,3.2078,3078.9,3078.7,0.0390466]
[1763396483842,3.2078,3079.0,3078.7,0.0390466]
[1763396484038,3.2078,3079.0,3078.1,3.2078]
[1763396484239,3.2078,3078.5,3078.1,3.2078]
[1763396484439,3.2078,3078.5,3077.7,3.2078]
[1763396485039,0.00486713,3078.4,3077.7,3.21128379]
[1763396485241,0.7926,3078.0,3077.3,3.2078]
[1763396485447,3.2078,3077.7,3076.9,3.2078]
[1763396485847,3.2078,3077.3,3076.9,3.2078]
[1763396486141,3.2078,3077.3,3076.5,3.2078]
[1763396486340,3.2078,3076.9,3076.5,0.00253964]
[1763396486544,0.7926,3076.7,3076.5,0.00253964]
[1763396487047,0.7926,3076.7,3075.7,3.2078]
[1763396487246,3.2078,3076.5,3075.7,3.2078]
[1763396487441,3.2078,3076.3,3075.2,3.2078]
[1763396487847,3.2078,3076.3,3075.6,3.2078]
[1763396488044,3.2078,3076.3,3075.6,0.00344168]
[1763396488045,3.21267519,3076.3,3075.6,0.00344168]
[1763396488242,0.00487519,3076.3,3076.1,3.2078]
[1763396488539,0.00258505,3076.9,3076.1,3.2078]
[1763396488740,0.00258505,3076.9,3076.5,3.2078]
[1763396488943,3.2078,3077.8,3076.5,3.2078]
[1763396489139,11.701,3079.8,3075.7,3.2504]
[1763396489140,3.2078,3078.2,3077.4,3.2078]
[1763396489350,3.2078,3078.7,3077.8,3.2078]
[1763396489644,3.2078,3078.3,3077.9,0.00487519]
[1763396489850,3.21071426,3078.3,3077.9,0.00778765]
[1763396490450,0.00291426,3078.3,3077.9,0.00778765]
[1763396490944,0.7926,3078.0,3077.9,0.00778765]
[1763396491348,0.7926,3078.0,3077.3,3.2078]
[1763396491739,3.2078,3077.9,3077.3,3.2078]
[1763396492044,0.7926,3078.0,3077.3,3.2078]
[1763396492345,0.00291426,3078.3,3077.9,3.2078]
[1763396492548,3.21071426,3078.3,3077.9,3.2078]
[1763396492749,0.00291426,3078.3,3077.9,3.2078]
[1763396493042,0.00487519,3078.6,3077.9,3.2078]
[1763396493247,0.00487519,3078.6,3078.3,3.2078]
[1763396493654,0.00487519,3078.6,3077.9,3.2078]
[1763396493948,0.00487519,3078.6,3077.5,3.2078]
[1763396493949,3.2078,3078.4,3077.5,3.2078]
[1763396495053,0.7926,3077.8,3077.5,3.2078]
[1763396496546,0.00872853,3078.6,3077.5,3.2078]
[1763396496849,3.2078,3079.6,3078.2,3.2078]
[1763396497049,4.0004,3080.0,3078.9,3.2078]
[1763396497348,4.0004,3080.0,3079.3,3.2078]
[1763396497646,3.2078,3079.6,3079.3,0.00487519]
[1763396497848,0.80113392,3080.0,3079.4,3.2464]
[1763396497849,3.392e-05,3080.0,3079.4,3.2464]
[1763396498057,3.2078,3081.8,3079.9,3.2078]
[1763396498355,3.2078,3080.8,3079.7,3.2078]
[1763396498547,3.2078,3081.4,3079.7,3.2078]
[1763396498849,3.2105768,3081.4,3080.5,3.2078]
[1763396499044,3.2105768,3081.4,3079.8,0.81874176]
[1763396499045,0.00487519,3081.3,3081.0,3.2078]
[1763396499751,3.21267519,3081.3,3080.8,0.00487519]
[1763396499955,0.00487519,3081.3,3081.1,3.2078]
[1763396500449,6.0,3081.2,3080.3,3.2078]
[1763396500653,3.21267519,3081.3,3080.3,3.2078]
[1763396500654,3.2078,3080.8,3080.3,3.2078]
[1763396500846,0.00487519,3081.3,3080.7,3.2078]
[1763396501148,3.21267519,3081.3,3080.7,3.2078]
[1763396501548,3.21267519,3081.3,3080.7,3.21267519]
[1763396502255,0.00487519,3081.3,3080.7,3.21267519]
[1763396502453,3.21267519,3081.3,3080.8,0.82699258]
[1763396502650,0.7926,3082.2,3081.1,3.2078]
[1763396502958,0.7926,3082.2,3081.2,0.82701629]
[1763396503151,0.7926,3082.2,3081.3,0.82701629]
[1763396503356,3.2078,3081.9,3081.4,0.82701629]
[1763396503655,3.2078,3081.5,3080.8,3.2078]
[1763396503959,3.2078,3081.5,3080.7,0.00487519]
[1763396504149,3.2078,3081.1,3080.7,0.00487519]
[1763396505346,0.00363422,3081.9,3080.7,0.00487519]
[1763396505347,3.2078,3081.2,3080.7,0.00487519]
[1763396505744,3.2078,3081.6,3080.7,0.00487519]
[1763396505955,3.2078,3081.2,3080.7,0.00487519]
[1763396506250,3.2078,3080.8,3079.7,1.15125277]
[1763396506451,3.2078,3080.8,3079.8,0.82657576]
[1763396506656,3.2078,3080.8,3079.9,0.82657576]
[1763396506855,0.00363422,3081.9,3079.7,0.00391419]
[1763396506856,4.0004,3080.4,3079.7,0.00391419]
[1763396507155,4.0004,3080.4,3079.8,0.82662068]
[1763396507459,4.00527519,3080.4,3079.7,0.00878938]
[1763396507662,0.79747519,3080.4,3079.8,0.82652938]
[1763396507857,3.2078,3080.8,3079.7,0.00878938]
[1763396507858,3.2078,3080.9,3080.0,3.2078]
[1763396508162,0.7926,3081.1,3080.0,3.2078]
[1763396508360,3.2078,3080.7,3080.0,3.2078]
[1763396508759,3.2078,3080.9,3080.1,0.82630913]
[1763396508961,0.00487519,3080.7,3080.4,3.2078]
[1763396509657,0.00487519,3080.7,3080.0,3.2078]
[1763396509961,0.7926,3080.0,3079.7,0.00878938]
[1763396510355,3.2078,3079.8,3079.7,0.00487519]
[1763396510558,3.2078,3079.8,3078.4,3.2078]
[1763396510763,3.2078,3079.4,3078.5,0.82646403]
[1763396511065,0.7926,3080.0,3078.4,3.2078]
[1763396511066,3.2078,3079.3,3078.6,0.82646403]
[1763396511260,3.2078,3079.7,3079.0,3.2078]
[1763396511462,3.21648904,3079.7,3079.1,0.8263415]
[1763396511766,3.21648904,3079.7,3079.2,0.8263415]
[1763396511965,3.21648904,3079.7,3079.0,3.21583619]
[1763396512161,3.2078,3079.3,3079.0,0.00803619]
[1763396512365,3.21648904,3079.7,3079.1,3.2078]
[1763396512562,3.21648904,3079.7,3079.2,3.2078]
[1763396513561,0.00868904,3079.7,3079.6,3.2078]
[1763396514166,0.00868904,3079.7,3079.6,4.03406794]
[1763396514466,0.7926,3081.1,3079.6,4.03406794]
[1763396514467,0.7926,3081.1,3079.6,14.42780652]
[1763396514662,0.7926,3081.1,3080.2,3.2078]
[1763396514857,0.7926,3081.1,3080.3,0.82626794]
[1763396515057,3.2078,3080.9,3080.2,3.2078]
[1763396515261,0.00785385,3080.9,3080.2,3.2078]
[1763396515463,0.00785385,3080.9,3080.7,3.2078]
[1763396516266,3.2078,3080.8,3080.1,3.2078]
[1763396516965,3.2078,3080.3,3079.7,3.2078]
[1763396517163,0.7302,3080.0,3079.8,0.82392333]
[1763396517370,0.7302,3080.0,3079.7,3.2078]
[1763396517969,3.2078,3080.4,3079.7,3.2078]
[1763396518170,0.7302,3080.0,3079.8,0.82638729]
[1763396518372,3.2078,3080.4,3079.9,0.82638729]
[1763396518566,3.2078,3080.4,3079.7,3.2078]
[1763396518767,0.7302,3080.0,3079.8,0.82638544]
[1763396518967,3.938,3080.0,3079.3,4.35911506]
[1763396519265,3.2078,3079.6,3079.4,0.82644015]